[Event "Early-Titled-Tuesday-Blitz-May-07-2024"]
[Site "Chess.com"]
[Date "2024.05.07"]
[Round "9"]
[White "EvgenyBurmakin"]
[Black "subham777"]
[Result "1-0"]
[WhiteElo "2353"]
[BlackElo "2464"]
[TimeControl "180+1"]
[EndTime "9:52:47 PDT"]
[Termination "EvgenyBurmakin won by checkmate"]

1. e4 {[%clk 0:03:00.9]} 1... e6 {[%clk 0:02:58.9]} 2. d4 {[%clk 0:03:00.3]}
2... d5 {[%clk 0:02:58.6]} 3. Nd2 {[%clk 0:03:00.3]} 3... c5 {[%clk 0:02:41.8]}
4. Ngf3 {[%clk 0:02:58.9]} 4... cxd4 {[%clk 0:02:27.7]} 5. exd5 {[%clk
0:02:58.7]} 5... Qxd5 {[%clk 0:02:16.9]} 6. Bc4 {[%clk 0:02:57.7]} 6... Qd7
{[%clk 0:02:12.3]} 7. O-O {[%clk 0:02:54.9]} 7... Nc6 {[%clk 0:02:11.7]} 8. Re1
{[%clk 0:02:53.3]} 8... Nf6 {[%clk 0:02:11.8]} 9. Nb3 {[%clk 0:02:50.9]} 9... a6
{[%clk 0:02:11.8]} 10. a4 {[%clk 0:02:39.1]} 10... Be7 {[%clk 0:02:10.6]} 11.
Nbxd4 {[%clk 0:02:32.7]} 11... Nxd4 {[%clk 0:02:08.6]} 12. Nxd4 {[%clk 0:02:32]}
12... O-O {[%clk 0:02:07.8]} 13. c3 {[%clk 0:02:16.5]} 13... Qc7 {[%clk
0:02:00.3]} 14. Qe2 {[%clk 0:02:09.8]} 14... Bd6 {[%clk 0:01:53.5]} 15. h3
{[%clk 0:02:06.5]} 15... e5 {[%clk 0:01:49.4]} 16. Nf3 {[%clk 0:01:59.7]} 16...
Bf5 {[%clk 0:01:46.7]} 17. Bb3 {[%clk 0:01:54.6]} 17... Rfe8 {[%clk 0:01:13.6]}
18. Bg5 {[%clk 0:01:50.9]} 18... Ne4 {[%clk 0:01:12.3]} 19. Be3 {[%clk 0:01:43]}
19... Bc5 {[%clk 0:00:55.8]} 20. Nh4 {[%clk 0:01:29.7]} 20... Bg6 {[%clk
0:00:42.1]} 21. Nxg6 {[%clk 0:01:25.9]} 21... hxg6 {[%clk 0:00:36.6]} 22. Rad1
{[%clk 0:01:18.5]} 22... Bxe3 {[%clk 0:00:33.4]} 23. Qxe3 {[%clk 0:01:17.2]}
23... Nc5 {[%clk 0:00:29.1]} 24. Bc2 {[%clk 0:01:14.9]} 24... e4 {[%clk
0:00:16.5]} 25. Rd5 {[%clk 0:01:08.7]} 25... Nd3 {[%clk 0:00:16]} 26. Bxd3
{[%clk 0:00:55.1]} 26... exd3 {[%clk 0:00:16.9]} 27. Qxe8+ {[%clk 0:00:54.3]}
27... Rxe8 {[%clk 0:00:17.8]} 28. Rxe8+ {[%clk 0:00:54.3]} 28... Kh7 {[%clk
0:00:18.1]} 29. Rxd3 {[%clk 0:00:49.4]} 29... Qf4 {[%clk 0:00:13.5]} 30. Rdd8
{[%clk 0:00:34.6]} 30... g5 {[%clk 0:00:11.1]} 31. Rd4 {[%clk 0:00:25.8]} 31...
Qc1+ {[%clk 0:00:09.4]} 32. Kh2 {[%clk 0:00:26.1]} 32... Qxb2 {[%clk 0:00:10.3]}
33. Rd3 {[%clk 0:00:13.9]} 33... Qxf2 {[%clk 0:00:08.3]} 34. Rf3 {[%clk
0:00:14.1]} 34... Qa2 {[%clk 0:00:07.2]} 35. Re7 {[%clk 0:00:13.4]} 35... Kg6
{[%clk 0:00:06.3]} 36. Rxb7 {[%clk 0:00:12.9]} 36... Qxa4 {[%clk 0:00:05.2]} 37.
Rfxf7 {[%clk 0:00:11.4]} 37... Qe4 {[%clk 0:00:02]} 38. Rxg7+ {[%clk 0:00:11.3]}
38... Kh6 {[%clk 0:00:02.5]} 39. Rgf7 {[%clk 0:00:09.7]} 39... Qe5+ {[%clk
0:00:01.7]} 40. Kg1 {[%clk 0:00:08.2]} 40... Qe1+ {[%clk 0:00:02.4]} 41. Kh2
{[%clk 0:00:08.5]} 41... Qe5+ {[%clk 0:00:02.5]} 42. Kg1 {[%clk 0:00:08.5]}
42... Qxc3 {[%clk 0:00:02.5]} 43. Rb6+ {[%clk 0:00:06.1]} 43... Kh5 {[%clk
0:00:02.2]} 44. Rh7# {[%clk 0:00:06.4]} 1-0

[Event "Early-Titled-Tuesday-Blitz-May-07-2024"]
[Site "Chess.com"]
[Date "2024.05.07"]
[Round "9"]
[White "Polish_fighter3000"]
[Black "OparinGrigoriy"]
[Result "1-0"]
[WhiteElo "3116"]
[BlackElo "2990"]
[TimeControl "180+1"]
[EndTime "9:52:48 PDT"]
[Termination "Polish_fighter3000 won by resignation"]

1. e4 {[%clk 0:03:00.9]} 1... c5 {[%clk 0:02:59.1]} 2. Nf3 {[%clk 0:03:00.6]}
2... Nc6 {[%clk 0:02:59.8]} 3. Bb5 {[%clk 0:02:57.7]} 3... d6 {[%clk 0:02:59.5]}
4. O-O {[%clk 0:02:55.4]} 4... Bd7 {[%clk 0:03:00]} 5. Re1 {[%clk 0:02:55.6]}
5... a6 {[%clk 0:03:00.6]} 6. Bf1 {[%clk 0:02:56]} 6... Nf6 {[%clk 0:02:59.8]}
7. c3 {[%clk 0:02:56.2]} 7... Bg4 {[%clk 0:03:00.3]} 8. h3 {[%clk 0:02:56.4]}
8... Bxf3 {[%clk 0:03:00.3]} 9. Qxf3 {[%clk 0:02:57.3]} 9... e6 {[%clk 0:03:01]}
10. d3 {[%clk 0:02:55.5]} 10... Be7 {[%clk 0:03:00.9]} 11. Nd2 {[%clk
0:02:51.2]} 11... O-O {[%clk 0:03:01.2]} 12. Qg3 {[%clk 0:02:50.1]} 12... Nh5
{[%clk 0:02:56.7]} 13. Qg4 {[%clk 0:02:45]} 13... Nf6 {[%clk 0:02:56.9]} 14. Qd1
{[%clk 0:02:45.6]} 14... d5 {[%clk 0:02:57.2]} 15. e5 {[%clk 0:02:43.6]} 15...
Nd7 {[%clk 0:02:57.2]} 16. Nf3 {[%clk 0:02:44.2]} 16... b5 {[%clk 0:02:57.4]}
17. d4 {[%clk 0:02:43.5]} 17... c4 {[%clk 0:02:56.2]} 18. a3 {[%clk 0:02:33.4]}
18... a5 {[%clk 0:02:54.8]} 19. g3 {[%clk 0:02:17.3]} 19... b4 {[%clk
0:02:54.6]} 20. a4 {[%clk 0:02:12.5]} 20... bxc3 {[%clk 0:02:51.6]} 21. bxc3
{[%clk 0:02:13.4]} 21... Rb8 {[%clk 0:02:51.7]} 22. Be2 {[%clk 0:01:58.9]} 22...
f5 {[%clk 0:02:18.1]} 23. exf6 {[%clk 0:01:33.5]} 23... Bxf6 {[%clk 0:02:18]}
24. Ba3 {[%clk 0:01:04.4]} 24... Be7 {[%clk 0:02:03.5]} 25. Bf1 {[%clk 0:00:52]}
25... Bxa3 {[%clk 0:01:59.7]} 26. Rxa3 {[%clk 0:00:52.9]} 26... Qf6 {[%clk
0:01:59.9]} 27. Bg2 {[%clk 0:00:53.1]} 27... Rb6 {[%clk 0:01:54.3]} 28. Ra2
{[%clk 0:00:51.6]} 28... Rfb8 {[%clk 0:01:54.4]} 29. Rae2 {[%clk 0:00:51.5]}
29... Nf8 {[%clk 0:01:55]} 30. Nd2 {[%clk 0:00:47.9]} 30... Ne7 {[%clk
0:01:45.4]} 31. h4 {[%clk 0:00:46.6]} 31... Nf5 {[%clk 0:01:40.5]} 32. Re5
{[%clk 0:00:40.4]} 32... Rb2 {[%clk 0:01:28.4]} 33. Nf3 {[%clk 0:00:29.3]} 33...
Nd6 {[%clk 0:01:23.2]} 34. Nd2 {[%clk 0:00:19.6]} 34... Ra2 {[%clk 0:01:03.6]}
35. Bh3 {[%clk 0:00:15.8]} 35... Rbb2 {[%clk 0:00:46.5]} 36. Bxe6+ {[%clk
0:00:15.4]} 36... Kh8 {[%clk 0:00:46.7]} 37. R5e2 {[%clk 0:00:15.2]} 37... Rxd2
{[%clk 0:00:26.7]} 38. Rxd2 {[%clk 0:00:16.1]} 38... Rxd2 {[%clk 0:00:26.9]} 39.
Qxd2 {[%clk 0:00:15.8]} 39... Nxe6 {[%clk 0:00:27.5]} 40. Qe3 {[%clk 0:00:16.5]}
40... Nc7 {[%clk 0:00:14.6]} 41. Qe7 {[%clk 0:00:11.1]} 41... Qxe7 {[%clk
0:00:13.2]} 42. Rxe7 {[%clk 0:00:12]} 42... Nde8 {[%clk 0:00:13.7]} 43. g4
{[%clk 0:00:07.9]} 43... Kg8 {[%clk 0:00:13.9]} 44. f4 {[%clk 0:00:06.5]} 44...
Kf8 {[%clk 0:00:12.9]} 45. Rd7 {[%clk 0:00:07.1]} 45... Ne6 {[%clk 0:00:06.9]}
46. Rxd5 {[%clk 0:00:06.8]} 46... Nxf4 {[%clk 0:00:07.2]} 47. Rf5+ {[%clk
0:00:07]} 1-0

[Event "Early-Titled-Tuesday-Blitz-May-07-2024"]
[Site "Chess.com"]
[Date "2024.05.07"]
[Round "9"]
[White "kidagent"]
[Black "Navyblue1"]
[Result "1/2-1/2"]
[WhiteElo "2356"]
[BlackElo "2237"]
[TimeControl "180+1"]
[EndTime "9:52:48 PDT"]
[Termination "Game drawn by repetition"]

1. e4 {[%clk 0:01:31.1]} 1... c5 {[%clk 0:02:56.5]} 2. Nf3 {[%clk 0:01:30.8]}
2... d6 {[%clk 0:02:56]} 3. d4 {[%clk 0:01:31.6]} 3... cxd4 {[%clk 0:02:56.5]}
4. Nxd4 {[%clk 0:01:32.3]} 4... Nf6 {[%clk 0:02:56.2]} 5. Nc3 {[%clk 0:01:33]}
5... a6 {[%clk 0:02:56.1]} 6. h3 {[%clk 0:01:33.6]} 6... e5 {[%clk 0:02:55]} 7.
Nde2 {[%clk 0:01:33.9]} 7... Be6 {[%clk 0:02:48.2]} 8. g4 {[%clk 0:01:31.3]}
8... d5 {[%clk 0:02:43.2]} 9. exd5 {[%clk 0:01:30.4]} 9... Nxd5 {[%clk
0:02:42.4]} 10. Bg2 {[%clk 0:01:30.3]} 10... Nxc3 {[%clk 0:02:27.2]} 11. Qxd8+
{[%clk 0:01:31.2]} 11... Kxd8 {[%clk 0:02:27.2]} 12. Nxc3 {[%clk 0:01:31.8]}
12... Kc7 {[%clk 0:02:24]} 13. O-O {[%clk 0:01:28.2]} 13... Nc6 {[%clk
0:02:18.9]} 14. Be3 {[%clk 0:01:26.9]} 14... Bd6 {[%clk 0:02:02.4]} 15. Ne4
{[%clk 0:01:24.1]} 15... Be7 {[%clk 0:01:57]} 16. Nc5 {[%clk 0:01:19.4]} 16...
Bxc5 {[%clk 0:01:56.2]} 17. Bxc5 {[%clk 0:01:19]} 17... Rad8 {[%clk 0:01:52.9]}
18. Rfd1 {[%clk 0:01:16.3]} 18... Nd4 {[%clk 0:01:38.3]} 19. c3 {[%clk
0:01:11.6]} 19... Nc6 {[%clk 0:01:33.4]} 20. b3 {[%clk 0:01:08]} 20... b6 {[%clk
0:01:23.4]} 21. Be3 {[%clk 0:01:07.2]} 21... Rd7 {[%clk 0:01:17.2]} 22. Rxd7+
{[%clk 0:01:06.1]} 22... Bxd7 {[%clk 0:01:16.7]} 23. Rd1 {[%clk 0:01:05]} 23...
Be6 {[%clk 0:01:14.2]} 24. Kf1 {[%clk 0:01:02.1]} 24... h5 {[%clk 0:01:04.7]}
25. g5 {[%clk 0:00:58.9]} 25... Rd8 {[%clk 0:00:57.3]} 26. Rxd8 {[%clk
0:00:57.6]} 26... Nxd8 {[%clk 0:00:56.8]} 27. Ke2 {[%clk 0:00:55.1]} 27... Nb7
{[%clk 0:00:41]} 28. h4 {[%clk 0:00:54.8]} 28... Nd6 {[%clk 0:00:32.7]} 29. Kd2
{[%clk 0:00:47.4]} 29... Nf5 {[%clk 0:00:31.9]} 30. Bf1 {[%clk 0:00:33.2]} 30...
a5 {[%clk 0:00:21.2]} 31. f4 {[%clk 0:00:32.6]} 31... Nxh4 {[%clk 0:00:19.8]}
32. fxe5 {[%clk 0:00:32]} 32... Nf3+ {[%clk 0:00:18.8]} 33. Kd3 {[%clk
0:00:29.6]} 33... Nxe5+ {[%clk 0:00:18.6]} 34. Ke4 {[%clk 0:00:29.8]} 34... Ng6
{[%clk 0:00:17.9]} 35. Bd4 {[%clk 0:00:26.9]} 35... Kc6 {[%clk 0:00:16.4]} 36.
Bxg7 {[%clk 0:00:26.3]} 36... Ne7 {[%clk 0:00:16.3]} 37. Be5 {[%clk 0:00:23.7]}
37... Nd5 {[%clk 0:00:16.2]} 38. Bd4 {[%clk 0:00:21.9]} 38... Ne7 {[%clk
0:00:15.8]} 39. Kf4 {[%clk 0:00:21]} 39... Ng6+ {[%clk 0:00:15.3]} 40. Kg3
{[%clk 0:00:20.6]} 40... Bd5 {[%clk 0:00:15.2]} 41. Be2 {[%clk 0:00:20.2]} 41...
h4+ {[%clk 0:00:14.2]} 42. Kh2 {[%clk 0:00:20.4]} 42... Be4 {[%clk 0:00:14.2]}
43. Bg4 {[%clk 0:00:18.7]} 43... b5 {[%clk 0:00:13.8]} 44. Bf2 {[%clk
0:00:18.7]} 44... a4 {[%clk 0:00:12.7]} 45. Bh5 {[%clk 0:00:18.6]} 45... axb3
{[%clk 0:00:12.4]} 46. axb3 {[%clk 0:00:19]} 46... Bc2 {[%clk 0:00:11.9]} 47. b4
{[%clk 0:00:18.6]} 47... Kd5 {[%clk 0:00:10.9]} 48. Bxg6 {[%clk 0:00:16.3]}
48... fxg6 {[%clk 0:00:10.5]} 49. Kh3 {[%clk 0:00:16.5]} 49... Kc4 {[%clk
0:00:10.5]} 50. Bd4 {[%clk 0:00:16.7]} 50... Bd3 {[%clk 0:00:10.2]} 51. Kxh4
{[%clk 0:00:17.6]} 51... Bc2 {[%clk 0:00:10.3]} 52. Kg3 {[%clk 0:00:17.9]} 52...
Bd3 {[%clk 0:00:10.7]} 53. Kf4 {[%clk 0:00:18.8]} 53... Bb1 {[%clk 0:00:10.9]}
54. Ke5 {[%clk 0:00:19.2]} 54... Bf5 {[%clk 0:00:11.1]} 55. Kf6 {[%clk
0:00:19.4]} 55... Bb1 {[%clk 0:00:11.5]} 56. Ke5 {[%clk 0:00:19.5]} 56... Bf5
{[%clk 0:00:11.6]} 57. Kf6 {[%clk 0:00:20.3]} 57... Bb1 {[%clk 0:00:12]} 58. Ke5
{[%clk 0:00:21.2]} 1/2-1/2

[Event "Early-Titled-Tuesday-Blitz-May-07-2024"]
[Site "Chess.com"]
[Date "2024.05.07"]
[Round "9"]
[White "zmarian"]
[Black "PonyQueen07"]
[Result "0-1"]
[WhiteElo "2299"]
[BlackElo "2138"]
[TimeControl "180+1"]
[EndTime "9:52:49 PDT"]
[Termination "PonyQueen07 won by resignation"]

1. d4 {[%clk 0:02:20.1]} 1... Nf6 {[%clk 0:02:59.9]} 2. c4 {[%clk 0:02:19.8]}
2... e6 {[%clk 0:03:00.2]} 3. g3 {[%clk 0:02:19.9]} 3... Bb4+ {[%clk 0:02:57.8]}
4. Nd2 {[%clk 0:02:18.9]} 4... O-O {[%clk 0:02:56.4]} 5. Bg2 {[%clk 0:02:19]}
5... Nc6 {[%clk 0:02:53.6]} 6. Nf3 {[%clk 0:02:17.4]} 6... d5 {[%clk 0:02:46.8]}
7. O-O {[%clk 0:02:10.4]} 7... Bxd2 {[%clk 0:02:41.2]} 8. Qxd2 {[%clk
0:02:06.8]} 8... dxc4 {[%clk 0:02:38.3]} 9. Rd1 {[%clk 0:02:06.6]} 9... h6
{[%clk 0:02:23.6]} 10. Qc2 {[%clk 0:02:05.9]} 10... Qe7 {[%clk 0:01:55.3]} 11.
Qxc4 {[%clk 0:02:04.3]} 11... Rd8 {[%clk 0:01:48.2]} 12. a3 {[%clk 0:02:00.3]}
12... Bd7 {[%clk 0:01:44]} 13. b4 {[%clk 0:01:58.9]} 13... a6 {[%clk 0:01:43.2]}
14. Bb2 {[%clk 0:01:56.7]} 14... Rac8 {[%clk 0:01:41.7]} 15. Rac1 {[%clk
0:01:55.4]} 15... Na7 {[%clk 0:01:40.8]} 16. Qd3 {[%clk 0:01:50.8]} 16... Ba4
{[%clk 0:01:33.6]} 17. Re1 {[%clk 0:01:46.5]} 17... Bb5 {[%clk 0:01:30.5]} 18.
Qc2 {[%clk 0:01:42.5]} 18... Bc6 {[%clk 0:01:07.8]} 19. Ne5 {[%clk 0:01:36.2]}
19... Bxg2 {[%clk 0:01:06.1]} 20. Kxg2 {[%clk 0:01:36.6]} 20... Nb5 {[%clk
0:01:03.2]} 21. Red1 {[%clk 0:01:32.2]} 21... Nd7 {[%clk 0:00:44.5]} 22. Nc4
{[%clk 0:01:26.4]} 22... Nd6 {[%clk 0:00:42.1]} 23. e4 {[%clk 0:01:23.9]} 23...
Nxc4 {[%clk 0:00:41.8]} 24. Qxc4 {[%clk 0:01:24.1]} 24... Nb6 {[%clk 0:00:41.7]}
25. Qb3 {[%clk 0:01:21.6]} 25... c6 {[%clk 0:00:35.1]} 26. Rc2 {[%clk
0:01:20.4]} 26... Nd7 {[%clk 0:00:33.8]} 27. Bc1 {[%clk 0:01:19.3]} 27... Nf6
{[%clk 0:00:29.9]} 28. f3 {[%clk 0:01:18.3]} 28... Rd7 {[%clk 0:00:28.7]} 29.
Be3 {[%clk 0:01:13.6]} 29... Rcd8 {[%clk 0:00:25.2]} 30. Rdc1 {[%clk 0:01:13.6]}
30... e5 {[%clk 0:00:20.9]} 31. dxe5 {[%clk 0:01:09.2]} 31... Qxe5 {[%clk
0:00:20.1]} 32. Rc3 {[%clk 0:01:04.6]} 32... Nxe4 {[%clk 0:00:09.8]} 33. fxe4
{[%clk 0:01:03]} 33... Qxe4+ {[%clk 0:00:10.7]} 34. Kg1 {[%clk 0:01:01.6]} 34...
Rd3 {[%clk 0:00:08.4]} 35. Rxd3 {[%clk 0:01:00.4]} 35... Rxd3 {[%clk 0:00:07.6]}
36. Qc2 {[%clk 0:00:55.4]} 36... Qxe3+ {[%clk 0:00:06.8]} 37. Kh1 {[%clk
0:00:55.2]} 37... Rd2 {[%clk 0:00:05.4]} 38. Qf5 {[%clk 0:00:46.4]} 38... g6
{[%clk 0:00:01.9]} 39. Qf1 {[%clk 0:00:29.8]} 39... Qe4+ {[%clk 0:00:02]} 40.
Kg1 {[%clk 0:00:30]} 40... Qe3+ {[%clk 0:00:01.9]} 41. Kh1 {[%clk 0:00:30.1]}
41... Rf2 {[%clk 0:00:01.1]} 42. Qxf2 {[%clk 0:00:23.2]} 42... Qxf2 {[%clk
0:00:01.6]} 43. Rg1 {[%clk 0:00:22.2]} 43... Qa2 {[%clk 0:00:01.6]} 44. Rg2
{[%clk 0:00:22.4]} 44... Qxa3 {[%clk 0:00:02]} 45. g4 {[%clk 0:00:23]} 45...
Qxb4 {[%clk 0:00:02.5]} 46. g5 {[%clk 0:00:23.6]} 46... hxg5 {[%clk 0:00:03]}
47. h4 {[%clk 0:00:24]} 47... Qxh4+ {[%clk 0:00:03.1]} 48. Rh2 {[%clk
0:00:23.6]} 48... Qxh2+ {[%clk 0:00:03.2]} 49. Kxh2 {[%clk 0:00:23.9]} 49... a5
{[%clk 0:00:04.1]} 50. Kg3 {[%clk 0:00:24.5]} 50... a4 {[%clk 0:00:04.8]} 51.
Kg4 {[%clk 0:00:25.4]} 51... f6 {[%clk 0:00:04.7]} 52. Kf3 {[%clk 0:00:25]}
52... a3 {[%clk 0:00:05.3]} 53. Ke4 {[%clk 0:00:25.9]} 53... a2 {[%clk
0:00:05.8]} 54. Kd3 {[%clk 0:00:26.8]} 54... a1=Q {[%clk 0:00:06]} 55. Kc4
{[%clk 0:00:27.7]} 55... b5+ {[%clk 0:00:06.1]} 56. Kc5 {[%clk 0:00:28.6]} 56...
Qc3+ {[%clk 0:00:06.2]} 57. Kd6 {[%clk 0:00:29.5]} 57... b4 {[%clk 0:00:06.7]}
58. Kc7 {[%clk 0:00:30.4]} 58... b3 {[%clk 0:00:07.3]} 59. Kb6 {[%clk
0:00:31.3]} 59... b2 {[%clk 0:00:07.8]} 60. Kc7 {[%clk 0:00:31.2]} 60... b1=Q
{[%clk 0:00:08.2]} 61. Kd6 {[%clk 0:00:32.1]} 61... c5 {[%clk 0:00:08.4]} 0-1

[Event "Early-Titled-Tuesday-Blitz-May-07-2024"]
[Site "Chess.com"]
[Date "2024.05.07"]
[Round "9"]
[White "wqws"]
[Black "watermelonattackk"]
[Result "1-0"]
[WhiteElo "2685"]
[BlackElo "2564"]
[TimeControl "180+1"]
[EndTime "9:52:50 PDT"]
[Termination "wqws won by resignation"]

1. e4 {[%clk 0:03:00.3]} 1... e5 {[%clk 0:02:59.5]} 2. Nf3 {[%clk 0:03:00.8]}
2... Nc6 {[%clk 0:03:00]} 3. Bb5 {[%clk 0:03:01.4]} 3... a6 {[%clk 0:03:00.5]}
4. Ba4 {[%clk 0:03:02]} 4... Nf6 {[%clk 0:03:00.9]} 5. O-O {[%clk 0:03:00.3]}
5... Be7 {[%clk 0:03:00.9]} 6. Re1 {[%clk 0:02:58.9]} 6... b5 {[%clk 0:03:00.9]}
7. Bb3 {[%clk 0:02:58.7]} 7... d6 {[%clk 0:03:01.3]} 8. c3 {[%clk 0:02:58.6]}
8... O-O {[%clk 0:03:01.4]} 9. d4 {[%clk 0:02:59]} 9... exd4 {[%clk 0:03:01.4]}
10. cxd4 {[%clk 0:02:58.7]} 10... Bg4 {[%clk 0:03:00.9]} 11. Be3 {[%clk
0:02:57.8]} 11... Na5 {[%clk 0:03:01]} 12. Bc2 {[%clk 0:02:57.8]} 12... c5
{[%clk 0:03:01.3]} 13. Nc3 {[%clk 0:02:54.9]} 13... Nc4 {[%clk 0:02:56]} 14. Bc1
{[%clk 0:02:52.5]} 14... cxd4 {[%clk 0:02:53]} 15. Qxd4 {[%clk 0:02:50.4]} 15...
Bxf3 {[%clk 0:02:52.6]} 16. gxf3 {[%clk 0:02:51.3]} 16... Nd7 {[%clk 0:02:48.6]}
17. f4 {[%clk 0:02:50.1]} 17... Bf6 {[%clk 0:02:48.4]} 18. Qd3 {[%clk
0:02:49.7]} 18... Nc5 {[%clk 0:02:46.9]} 19. Qh3 {[%clk 0:02:49.7]} 19... g6
{[%clk 0:02:41.1]} 20. Rb1 {[%clk 0:02:42.5]} 20... b4 {[%clk 0:02:31.6]} 21.
Nd5 {[%clk 0:02:42.7]} 21... Bg7 {[%clk 0:02:29]} 22. f5 {[%clk 0:02:38.2]}
22... Ne5 {[%clk 0:02:18.5]} 23. Qg3 {[%clk 0:02:35.2]} 23... Rc8 {[%clk
0:02:13.1]} 24. Bg5 {[%clk 0:02:30.6]} 24... f6 {[%clk 0:02:13.4]} 25. Be3
{[%clk 0:02:30.5]} 25... g5 {[%clk 0:02:11.5]} 26. f4 {[%clk 0:02:14]} 26...
gxf4 {[%clk 0:02:09.1]} 27. Bxf4 {[%clk 0:02:12.2]} 27... Kh8 {[%clk 0:02:09.5]}
28. Kh1 {[%clk 0:02:12.3]} 28... a5 {[%clk 0:02:08]} 29. Rg1 {[%clk 0:02:12.3]}
29... Rg8 {[%clk 0:02:08.2]} 30. Qh3 {[%clk 0:02:06.8]} 30... Ncd7 {[%clk
0:01:53]} 31. Ba4 {[%clk 0:01:58.6]} 31... Nc5 {[%clk 0:01:49.6]} 32. Bc2 {[%clk
0:01:58.5]} 32... Ncd7 {[%clk 0:01:49.7]} 33. Rg3 {[%clk 0:01:43.5]} 33... Rxc2
{[%clk 0:01:26.5]} 34. Rbg1 {[%clk 0:01:43.2]} 34... Nf7 {[%clk 0:01:15]} 35.
Bxd6 {[%clk 0:01:07.4]} 35... Nxd6 {[%clk 0:01:05.6]} 36. Nf4 {[%clk 0:01:07.2]}
36... h6 {[%clk 0:00:19.8]} 37. Rxg7 {[%clk 0:00:44]} 37... Rxg7 {[%clk
0:00:18.9]} 38. Qxh6+ {[%clk 0:00:43.6]} 38... Rh7 {[%clk 0:00:18.6]} 39. Ng6+
{[%clk 0:00:43.8]} 39... Kg8 {[%clk 0:00:18.6]} 40. Nf8+ {[%clk 0:00:41.7]}
40... Kf7 {[%clk 0:00:18.3]} 41. Qxh7+ {[%clk 0:00:39.2]} 41... Ke8 {[%clk
0:00:16.1]} 42. Ne6 {[%clk 0:00:37.9]} 42... Nf8 {[%clk 0:00:09.9]} 43. Qh5+
{[%clk 0:00:33]} 43... Ke7 {[%clk 0:00:07.2]} 44. Rg7+ {[%clk 0:00:31.5]} 44...
Nf7 {[%clk 0:00:07.6]} 45. Rxf7+ {[%clk 0:00:31.6]} 45... Kd6 {[%clk 0:00:07.7]}
46. Qd1+ {[%clk 0:00:31.6]} 46... Ke5 {[%clk 0:00:07.9]} 47. Nxd8 {[%clk
0:00:32.1]} 1-0

[Event "Early-Titled-Tuesday-Blitz-May-07-2024"]
[Site "Chess.com"]
[Date "2024.05.07"]
[Round "9"]
[White "tptagain"]
[Black "WhiteKnight2612"]
[Result "1-0"]
[WhiteElo "2930"]
[BlackElo "2843"]
[TimeControl "180+1"]
[EndTime "9:52:52 PDT"]
[Termination "tptagain won by resignation"]

1. e4 {[%clk 0:03:00.9]} 1... e5 {[%clk 0:02:52.6]} 2. Nf3 {[%clk 0:03:00.7]}
2... Nc6 {[%clk 0:02:51.9]} 3. Bc4 {[%clk 0:03:00.6]} 3... Bc5 {[%clk
0:02:50.4]} 4. c3 {[%clk 0:03:00.4]} 4... Nf6 {[%clk 0:02:51]} 5. d4 {[%clk
0:03:00.2]} 5... exd4 {[%clk 0:02:50.8]} 6. e5 {[%clk 0:03:00.5]} 6... d5 {[%clk
0:02:50.6]} 7. Bb5 {[%clk 0:02:59.6]} 7... Ne4 {[%clk 0:02:50.1]} 8. cxd4 {[%clk
0:02:59.8]} 8... Bb4+ {[%clk 0:02:50.8]} 9. Nbd2 {[%clk 0:02:55.1]} 9... O-O
{[%clk 0:02:40.4]} 10. O-O {[%clk 0:02:52.3]} 10... Bg4 {[%clk 0:02:38.4]} 11.
Qa4 {[%clk 0:02:37.1]} 11... Nxd4 {[%clk 0:02:15.8]} 12. Qxb4 {[%clk 0:01:50.8]}
12... c5 {[%clk 0:01:36.7]} 13. Qa4 {[%clk 0:01:49.4]} 13... Nxd2 {[%clk
0:01:36]} 14. Nxd2 {[%clk 0:01:30.1]} 14... Bf5 {[%clk 0:01:34.3]} 15. Nb3
{[%clk 0:01:06.3]} 15... a6 {[%clk 0:01:22.2]} 16. Nxc5 {[%clk 0:00:53.9]} 16...
Nxb5 {[%clk 0:01:20.6]} 17. Qf4 {[%clk 0:00:30.7]} 17... Bg6 {[%clk 0:01:09]}
18. Rd1 {[%clk 0:00:24.8]} 18... Qe7 {[%clk 0:01:04.6]} 19. Be3 {[%clk
0:00:21.4]} 19... Rfd8 {[%clk 0:00:51.8]} 20. Rac1 {[%clk 0:00:16.9]} 20... Rac8
{[%clk 0:00:47.9]} 21. Bd4 {[%clk 0:00:16.4]} 21... b6 {[%clk 0:00:45.4]} 22.
Nb3 {[%clk 0:00:15.5]} 22... Rc4 {[%clk 0:00:45.2]} 23. Qe3 {[%clk 0:00:13.2]}
23... Rdc8 {[%clk 0:00:42.3]} 24. Bxb6 {[%clk 0:00:13.1]} 24... Bc2 {[%clk
0:00:42.3]} 25. Re1 {[%clk 0:00:11]} 25... Qh4 {[%clk 0:00:36.6]} 26. Nd2 {[%clk
0:00:08.3]} 26... R4c6 {[%clk 0:00:33.5]} 27. Nf3 {[%clk 0:00:08.5]} 27... Qb4
{[%clk 0:00:26.9]} 28. Bd4 {[%clk 0:00:06.1]} 28... Rc4 {[%clk 0:00:24.2]} 29.
e6 {[%clk 0:00:06.6]} 29... Nxd4 {[%clk 0:00:21]} 30. Nxd4 {[%clk 0:00:05.7]}
30... Be4 {[%clk 0:00:11.5]} 31. exf7+ {[%clk 0:00:05.5]} 31... Kxf7 {[%clk
0:00:11.9]} 32. Rxc4 {[%clk 0:00:05.6]} 32... Qxc4 {[%clk 0:00:11.6]} 33. f3
{[%clk 0:00:05.6]} 33... Bg6 {[%clk 0:00:07.8]} 34. Qe6+ {[%clk 0:00:03.7]}
34... Kf8 {[%clk 0:00:08.5]} 35. Qd6+ {[%clk 0:00:03.3]} 35... Kg8 {[%clk
0:00:09.1]} 36. Ne6 {[%clk 0:00:03.3]} 36... Kh8 {[%clk 0:00:03]} 37. Qe5 {[%clk
0:00:02.8]} 37... Rg8 {[%clk 0:00:03.7]} 38. Qd4 {[%clk 0:00:02.8]} 38... Qxa2
{[%clk 0:00:04.1]} 39. Nxg7 {[%clk 0:00:02.4]} 39... Rxg7 {[%clk 0:00:04]} 40.
Re7 {[%clk 0:00:02.6]} 40... Qb1+ {[%clk 0:00:03.8]} 41. Kf2 {[%clk 0:00:02.9]}
41... Qc2+ {[%clk 0:00:04.5]} 42. Kg3 {[%clk 0:00:02.3]} 42... Qc7+ {[%clk
0:00:01.6]} 43. Rxc7 {[%clk 0:00:02.1]} 1-0